fUSD/lending_fUSD_20241003
["ID","MTS","AMOUNT","RATE_DAILY","PERIOD"]
[339744202,1727925040591,-745.83403878,0.000129,2]
[339744203,1727925040602,-5464.19112739,0.000129,2]
[339744204,1727925040684,-3372.01918092,0.000129,2]
[339744205,1727925040695,-2562.59159697,0.000129,2]
[339744209,1727925043829,-242336.16456433,0.000129,2]
[339744210,1727925043841,-1309.9999992,0.000129,2]
[339744211,1727925043854,-5693.25,0.000129,2]
[339744212,1727925043865,-5161.16,0.000129,2]
[339744214,1727925046539,-14797.62047935,0.000129,2]
[339744215,1727925046551,-369.37807173,0.000129,2]
[339744219,1727926100069,332.0503318,0.00012,30]
[339744271,1727926233201,-171.76,0.00010959,2]
[339744272,1727926233211,-173.09,0.00010959,2]
[339744273,1727926233220,-150.0,0.00010999,2]
[339744274,1727926233230,-305.90826048,0.00010999,2]
[339744275,1727926233239,-3308.23173952,0.00011,2]
[339744276,1727926233251,-1783.21909049,0.00011,2]
[339744277,1727926233283,-291.65,0.00011,2]
[339744278,1727926233295,-2030.02976625,0.00011,2]
[339744279,1727926233307,-795.7535399,0.00011,2]
[339744280,1727926233322,-4088.58098277,0.00011,2]
[339744281,1727926233358,-438.899,0.00011,2]
[339744282,1727926233369,-2204.70442374,0.00011,2]
[339744283,1727926238909,-926.46979851,0.00011,2]
[339744287,1727926240621,-3496.78494669,0.00011,2]
[339744288,1727926240632,-680.06187368,0.00011,2]
[339744289,1727926240680,-1594.43651587,0.00011,2]
[339744290,1727926240835,-46488.00881103,0.00011,2]
[339744291,1727926240847,-2151.32395498,0.00011,2]
[339744292,1727926240858,-632.17925565,0.00011,2]
[339744293,1727926240869,-489.4813279,0.00011,2]
[339744294,1727926240880,-86803.98423917,0.00011,2]
[339744299,1727926243866,-438.44803951,0.00011,2]
[339744300,1727926243959,-2623.00655929,0.00011,2]
[339744301,1727926243971,-242336.16456433,0.00011,2]
[339744302,1727926243996,-993.56644484,0.00011,2]
[339744303,1727926244009,-12907.64513513,0.00011,2]
[339744304,1727926246663,-6134.03908973,0.00011,2]
[339744305,1727926246678,-4871.85424991,0.00011,2]
[339744307,1727926246815,-1615.08851779,0.00011,2]
[339744308,1727926247020,-577715.66387684,0.00011,2]
[339744309,1727926247034,-10534.54477223,0.00011,2]
[339744310,1727926247046,-3893.8786,0.00011,2]
[339744335,1727926474919,-1783.0,0.000106,5]
[339744336,1727926736806,310.66,9.391e-05,2]
[339744338,1727927220388,307.62,9.061e-05,2]
[339744346,1727927416660,211.53895662,0.00010181,2]
[339744358,1727927431589,-250.0,0.00010281,2]
[339744359,1727927431598,-1000.0,0.00010281,2]
[339744360,1727927431608,-250.0,0.00010288,2]
[339744361,1727927431618,-722.66,0.00010305,2]
[339744362,1727927431627,-699.81,0.00010316,2]
[339744363,1727927431636,-256.64,0.00010811,2]
[339744364,1727927431645,-191.14,0.00010959,2]
[339744365,1727927431655,-150.0,0.00010959,2]
[339744366,1727927431665,-642.28649013,0.00010973,2]
[339744367,1727927431675,-500.0,0.00010973,2]
[339744368,1727927431684,-500.0,0.00010973,2]
[339744369,1727927431693,-500.0,0.00010973,2]
[339744370,1727927431703,-503.4288004,0.00010973,2]
[339744371,1727927431713,-1852.42,0.00010983,2]
[339744372,1727927431722,-250.0,0.00010985,2]
[339744373,1727927431732,-248.83381798,0.0001099,2]
[339744374,1727927431742,-8561.21905217,0.0001099,2]
[339744375,1727927431752,-150.0,0.00010994,2]
[339744376,1727927431761,-198.46770743,0.00010999,3]
[339744377,1727927431770,-177.188,0.00010999,2]
[339744378,1727927431779,-150.0,0.00010999,2]
[339744379,1727927431789,-10189.50794326,0.00011,2]
[339744380,1727927431801,-445272.71345643,0.00011,2]
[339744381,1727927431812,-409395.3062227,0.00011,2]
[339744382,1727927431825,-250.0,0.00011,2]
[339744383,1727927431835,-500.0,0.00011,2]
[339744384,1727927431846,-500.0,0.00011,2]
[339744385,1727927431856,-770.0,0.00011,2]
[339744386,1727927431866,-291.56,0.00011004,2]
[339744387,1727927431876,-1260.83,0.00011004,2]
[339744388,1727927431885,-499.99,0.00011004,2]
[339744389,1727927431896,-244.7,0.00011004,2]
[339744390,1727927431906,-168.12,0.00011009,2]
[339744391,1727927431915,-213.78,0.00011025,2]
[339744392,1727927431925,-3385.54455856,0.00011027,2]
[339744393,1727927431937,-735.71620912,0.00011027,2]
[339744394,1727927431953,-146.54923232,0.00011027,2]
[339744395,1727927431963,-153.45076768,0.00011044,2]
[339744396,1727927431975,-294.15884645,0.00011044,2]
[339744397,1727927431993,-314.42038587,0.00011044,2]
[339744398,1727927432002,-164.73961413,0.00011071,2]
[339744399,1727927432021,-0.75038587,0.00011071,2]
[339744400,1727927432031,-213.78,0.0001108,2]
[339744401,1727927432041,-109.47988923,0.00011309,2]
[339744402,1727927432052,-40.75011077,0.00011309,2]
[339744403,1727927432062,-307.62,0.00011325,2]
[339744404,1727927432072,-1000.0,0.00011566,2]
[339744405,1727927432082,-150.0,0.00011589,2]
[339744406,1727927432092,-150.0,0.00011589,2]
[339744407,1727927432103,-150.0,0.00011589,2]
[339744408,1727927432112,-150.0,0.00011681,2]
[339744409,1727927432122,-150.0,0.00011773,2]
[339744410,1727927432131,-150.0,0.00011865,2]
[339744411,1727927432141,-760.87,0.00011945,2]
[339744412,1727927432151,-423.3,0.00011945,2]
[339744413,1727927432160,-208.86802986,0.00011945,2]
[339744414,1727927432202,-214.43197014,0.00011945,2]
[339744415,1727927432211,-753.8,0.00011945,2]
[339744416,1727927432221,-151.04,0.00011945,2]
[339744417,1727927432236,-150.0,0.00011957,2]
[339744418,1727927432245,-197.11,0.00012007,2]
[339744419,1727927432254,-150.0,0.00012018,2]
[339744420,1727927432264,-150.0,0.00012049,2]
[339744421,1727927432273,-303.84,0.00012082,2]
[339744422,1727927432281,-151.23,0.00012082,2]
[339744423,1727927432290,-263.09,0.00012082,2]
[339744424,1727927432300,-186.29945586,0.00012082,2]
[339744425,1727927432311,-674.44054414,0.00012082,2]
[339744426,1727927432321,-692.51,0.00012082,2]
[339744427,1727927432331,-150.0,0.00012141,2]
[339744428,1727927432341,-150.0,0.00012233,2]
[339744429,1727927432350,-150.0,0.00012325,2]
[339744431,1727927432360,-424.38888601,0.00012342,2]
[339744433,1727927432369,-500.0,0.00012342,2]
[339744435,1727927432379,-500.0,0.00012342,2]
[339744437,1727927432388,-150.0,0.00012417,2]
[339744439,1727927432398,-150.0,0.00012447,2]
[339744441,1727927432407,-150.0,0.00012509,2]
[339744443,1727927432417,-147.39481715,0.000126,4]
[339744445,1727927432429,-102.60518285,0.000126,4]
[339744447,1727927432439,-150.0,0.00012601,2]
[339744449,1727927432448,-150.0,0.00012693,2]
[339744451,1727927432457,-251.4302156,0.000127,4]
[339744466,1727927437765,-48.5697844,0.000127,4]
[339744467,1727927437774,-150.0,0.00012785,2]
[339744468,1727927437786,-500.0,0.00012797,2]
[339744469,1727927437795,-300.0,0.000128,4]
[339744470,1727927437805,-173.18979554,0.000128,2]
[339744471,1727927437814,-170.08863493,0.000128,2]
[339744472,1727927437826,-161.53802999,0.000128,2]
[339744473,1727927437838,-169.63381,0.000128,2]
[339744474,1727927437848,-327.38293414,0.000128,2]
[339744475,1727927437860,-1228.55894921,0.000128,2]
[339744476,1727927437871,-156.57092114,0.000128,2]
[339744477,1727927437880,-193.98474639,0.000128,2]
[339744478,1727927437890,-1000.0,0.00012851,2]
[339744479,1727927437900,-500.0,0.00012873,2]
[339744480,1727927437910,-500.53368223,0.00012873,2]
[339744481,1727927437919,-251.41224922,0.00012877,2]
[339744482,1727927437931,-162.30886864,0.00012877,2]
[339744483,1727927437940,-247.22776432,0.00012877,2]
[339744484,1727927437949,-162.54,0.00012893,2]
[339744485,1727927437958,-289.39551944,0.00012899,2]
[339744486,1727927437968,-2583.89307067,0.00012899,2]
[339744487,1727927437978,-184581.30326413,0.000129,2]
[339744491,1727927438013,-33741.26908758,0.000129,2]
[339744493,1727927438025,-32005.76904744,0.000129,2]
[339744495,1727927438036,-43198.81759325,0.000129,2]
[339744496,1727927438047,-3725.18505877,0.000129,2]
[339744501,1727927440109,-6402.04181303,0.000129,2]
[339744502,1727927440120,-1253.466626,0.000129,2]
[339744503,1727927440131,-5067.44166413,0.000129,2]
[339744504,1727927440154,-5219.68219887,0.000129,2]
[339744505,1727927440165,-2830.02928545,0.000129,2]
[339744506,1727927440210,-3345.41369488,0.000129,2]
[339744507,1727927440221,-331.37356652,0.000129,2]
[339744508,1727927442624,-443.4506406,0.000129,2]
[339744509,1727927442635,-445.03084536,0.000129,2]
[339744510,1727927442647,-1383.95848256,0.000129,2]
[339744511,1727927442865,-293.80853246,0.000129,2]
[339744512,1727927442879,-1728.53770147,0.000129,2]
[339744513,1727927442890,-242336.16456433,0.000129,2]
[339744514,1727927442902,-378.703701,0.000129,2]
[339744515,1727927442914,-4143.31,0.000129,2]
[339744516,1727927442944,-2006.30460254,0.000129,2]
[339744517,1727927442956,-656.86101804,0.000129,2]
[339744539,1727927445566,-15198.06703155,0.000129,2]
[339744553,1727927445965,-14145.25748436,0.000129,2]
[339744554,1727927445977,-526887.23804038,0.000129,2]
[339744555,1727927445988,-5120.18609068,0.000129,2]
[339744562,1727928232940,289.36,9.836e-05,2]
[339744595,1727928631748,-600.0,0.000108,2]
[339744596,1727928631757,-9.86344662,0.000109,2]
[339744597,1727928631829,-490.13655338,0.000109,2]
[339744598,1727928631839,-163.68,0.00010959,2]
[339744599,1727928631848,-165.29,0.00010959,2]
[339744600,1727928631857,-250.0,0.00011,2]
[339744601,1727928631867,-2068.4189426,0.00011,2]
[339744602,1727928631877,-250.0,0.00011477,2]
[339744603,1727928631886,-361.33,0.000115,2]
[339744604,1727928631896,-1000.0,0.0001154,2]
[339744605,1727928631905,-250.0,0.00011575,2]
[339744606,1727928631914,-150.0,0.00011589,2]
[339744607,1727928631924,-150.23,0.00011611,2]
[339744608,1727928631933,-150.0,0.00011667,2]
[339744609,1727928631943,-499.99,0.00011667,2]
[339744610,1727928631952,-0.92450402,0.00011683,2]
[339744611,1727928631966,-249.07549598,0.00011683,2]
[339744612,1727928631976,-153.99,0.00011714,2]
[339744613,1727928631985,-308.9,0.00011726,2]
[339744614,1727928631995,-165.49,0.00011726,2]
[339744615,1727928632004,-463.66,0.00012072,2]
[339744616,1727928632014,-289.36,0.000121,2]
[339744617,1727928632024,-300.0,0.0001211,2]
[339744618,1727928632033,-469.524504,0.00012111,2]
[339744619,1727928632044,-700.245496,0.00012111,2]
[339744620,1727928632053,-359.916,0.000126,2]
[339744621,1727928632063,-1000.0,0.000126,2]
[339744622,1727928632072,-261.3968,0.000126,2]
[339744623,1727928632083,-2500.0,0.000126,2]
[339744624,1727928632092,-188.89782537,0.00012696,2]
[339744625,1727928632101,-150.0,0.00012699,2]
[339744626,1727928632112,-533.52853463,0.000127,2]
[339744628,1727928632135,-3336.88164217,0.000127,2]
[339744630,1727928632146,-899.999998,0.000127,2]
[339744632,1727928632157,-255.5570155,0.000127,2]
[339744634,1727928632168,-1879.1989097,0.000127,2]
[339744636,1727928632177,-906.7705,0.000127,2]
[339744637,1727928632187,-196.8247,0.000127,2]
[339744638,1727928632196,-19205.3515,0.000127,2]
[339744639,1727928632207,-91172.5999,0.000127,2]
[339744640,1727928632216,-1000.0,0.000127,2]
[339744641,1727928632226,-10019.4091,0.000127,2]
[339744642,1727928632236,-22639.4432,0.000127,2]
[339744643,1727928632245,-147474.7752,0.000127,2]
[339744644,1727928632255,-500.0,0.00012796,2]
[339744645,1727928632264,-500.0,0.00012797,2]
[339744646,1727928632274,-9765.11712769,0.000128,2]
[339744647,1727928632292,-4223.30804722,0.000128,2]
[339744648,1727928637709,-287.0,0.0001269,2]
[339744649,1727928637720,-287.0,0.0001269,2]
[339744650,1727928637729,-287.0,0.0001269,2]
[339744651,1727928637739,-9139.0,0.000128,2]
[339744652,1727928637753,-3936.04611518,0.000128,2]
[339744653,1727928637764,-217936.52870991,0.000128,2]
[339744654,1727928637775,-8665.0253,0.000128,2]
[339744655,1727928637784,-562.7959,0.000128,2]
[339744656,1727928637794,-252.9363,0.000128,2]
[339744657,1727928637803,-1418.0011,0.000128,2]
[339744658,1727928637812,-2078.5959,0.000128,2]
[339744659,1727928637821,-962.547,0.000128,2]
[339744660,1727928637831,-173.18979554,0.000128,2]
[339744661,1727928637839,-167.78396599,0.000128,2]
[339744662,1727928637849,-157.36847044,0.000128,2]
[339744663,1727928637858,-500.0,0.00012835,2]
[339744664,1727928637868,-500.0,0.00012835,2]
[339744665,1727928637878,-500.0,0.00012835,2]
[339744666,1727928637887,-500.0,0.00012835,2]
[339744667,1727928637897,-500.0,0.00012835,2]
[339744668,1727928637906,-396.406,0.00012835,2]
[339744669,1727928637915,-296.7341762,0.00012873,2]
[339744670,1727928637925,-500.0,0.00012873,2]
[339744671,1727928637934,-500.0,0.00012873,2]
[339744672,1727928637944,-500.0,0.00012873,2]
[339744673,1727928637954,-500.0,0.00012873,2]
[339744674,1727928637963,-201.01668008,0.00012873,2]
[339744675,1727928637983,-489.94858371,0.00012897,2]
[339744677,1727928637993,-1157.21092828,0.00012899,3]
[339744679,1727928638002,-1157.21092828,0.00012899,3]
[339744681,1727928638011,-1157.21092828,0.00012899,3]
[339744683,1727928638021,-1157.21092827,0.00012899,3]
[339744685,1727928638030,-1157.21092828,0.00012899,3]
[339744687,1727928638040,-2381.89658873,0.00012899,2]
[339744689,1727928638050,-507.81574903,0.00012899,2]
[339744690,1727928638059,-500.0,0.00012899,2]
[339744691,1727928638068,-500.0,0.00012899,2]
[339744692,1727928638078,-500.0,0.00012899,2]
[339744693,1727928638087,-466.22646798,0.00012899,2]
[339744694,1727928638096,-526.11207639,0.00012899,2]
[339744695,1727928638107,-1173375.53135815,0.000129,2]
[339744696,1727928638126,-255.0,0.000129,2]
[339744697,1727928638138,-835.77,0.000129,2]
[339744698,1727928638149,-255.3477856,0.000129,2]
[339744699,1727928638179,-2004.71256,0.000129,2]
[339744701,1727928638191,-716.46213631,0.000129,2]
[339744705,1727928638224,-653.67901261,0.000129,2]
[339744708,1727928638235,-2735.53908701,0.000129,2]
[339744711,1727928638254,-609.10020776,0.000129,2]
[339744727,1727928639932,-5815.43155784,0.000129,2]
[339744728,1727928639949,-500.75,0.000129,2]
[339744738,1727928643027,-242336.16456433,0.000129,2]
[339744742,1727928645752,-15212.3095886,0.000129,2]
[339744743,1727928645806,-28500.83251564,0.000129,2]
[339744995,1727929529455,368.93344449,0.000101,2]
[339745040,1727929831979,-1100.52168804,0.00010493,2]
[339745041,1727929831991,-2895.55216596,0.00010493,2]
[339745042,1727929832001,-300.0,0.00010599,2]
[339745043,1727929832010,-7604.68956032,0.000106,2]
[339745044,1727929832022,-3082.03617125,0.000106,2]
[339745045,1727929832041,-1058.51229057,0.000106,2]
[339745047,1727929837865,-2004.75996,0.000106,2]
[339745048,1727929837877,-784.39333094,0.000106,2]
[339745049,1727929837889,-250.06138692,0.000106,2]
[339745050,1727929837899,-41.63861304,0.00010928,2]
[339745054,1727929837979,-181.69657332,0.00010928,2]
[339745055,1727929837989,-2182.5974611,0.00010928,2]
[339745056,1727929837999,-218.46960755,0.00010999,2]
[339745057,1727929838008,-20404.99587701,0.00011,2]
[339745058,1727929838018,-868.46789177,0.00011,2]
[339745059,1727929838038,-33060.85082986,0.00011,2]
[339745060,1727929838049,-409377.02590562,0.00011,2]
[339745066,1727929839817,-923.86523728,0.0001099,2]
[339745074,1727929842980,-2833.99132107,0.0001099,2]
[339745075,1727929842990,-4936.43009393,0.00011,2]
[339745076,1727929843159,-2181.14808663,0.00011,2]
[339745092,1727929846611,-1940426.90611982,0.00011,2]
[339745093,1727929846622,-260.6034,0.00011,2]
[339745094,1727929846633,-1006.8,0.00011,2]
[339745095,1727929846675,-639.26,0.00011,2]
[339745096,1727929846751,-5408.47626602,0.00011,2]
[339745097,1727929846763,-14260.006163,0.00011,2]
[339745103,1727929987352,399.49,9.449e-05,2]
[339745104,1727930442042,10068.65,0.00010181,2]
[339745105,1727930451539,351.26,0.00010176,2]
[339745106,1727930481973,1417.37,0.00010133,2]
[339745108,1727930562967,462.63,8.294e-05,2]
[339745109,1727930587760,150.01,0.00010212,2]
[339745110,1727930617941,1358.72,0.00010212,2]
[339745111,1727930643774,2049.45,0.00010212,2]
[339745112,1727930696080,1975.26,0.0001017,2]
[339745116,1727930777067,250.0,0.00010062,2]
[339745117,1727930785900,1852.42,0.00010153,2]
[339745118,1727930814588,250.0,0.00010201,2]
[339745133,1727931032260,-800.0,0.00010252,2]
[339745134,1727931032271,-888.97821,0.00010253,2]
[339745135,1727931032284,-23011.02179,0.00010253,2]
[339745136,1727931032295,-250.86,0.00010256,2]
[339745137,1727931032304,-150.0,0.00010346,2]
[339745138,1727931032313,-3039.59491356,0.00010347,2]
[339745139,1727931032379,-6862.90638644,0.00010347,2]
[339745140,1727931032388,-4409.5086,0.00010347,2]
[339745141,1727931032398,-5199.28,0.00010409,2]
[339745142,1727931032407,-2282.46,0.00010409,2]
[339745143,1727931032416,-232.18,0.0001051,2]
[339745144,1727931032424,-1925.4,0.00010536,2]
[339745145,1727931032433,-200.0,0.00010538,2]
[339745146,1727931032443,-462.63,0.00010558,2]
[339745147,1727931032452,-750.63,0.00010599,2]
[339745148,1727931032461,-499.99,0.00010631,2]
[339745149,1727931032470,-2965.29403367,0.000108,2]
[339745150,1727931032488,-1045.44000008,0.000108,2]
[339745155,1727931038035,-561.711231,0.000108,2]
[339745156,1727931038047,-1237.87443525,0.000108,2]
[339745157,1727931038056,-2500.0,0.000108,2]
[339745158,1727931038066,-2003.2338,0.000108,2]
[339745159,1727931038076,-1894.74982772,0.00010899,2]
[339745160,1727931038087,-649.35606077,0.00010899,2]
[339745161,1727931038103,-757.258615,0.00010899,2]
[339745162,1727931038114,-314.51665024,0.00010899,2]
[339745163,1727931038159,-251.7869532,0.00010899,2]
[339745164,1727931038168,-500.0,0.000109,2]
[339745165,1727931038177,-189.59548676,0.000109,2]
[339745166,1727931038187,-28105.69510976,0.000109,2]
[339745167,1727931038198,-529.76522685,0.000109,2]
[339745168,1727931038209,-306.42367944,0.000109,2]
[339745322,1727931039983,-158618.78558395,0.000109,2]
[339745324,1727931039993,-1000.0,0.000109,2]
[339745326,1727931040003,-155.54827706,0.000109,2]
[339745328,1727931040012,-164.08,0.00010959,2]
[339745330,1727931040021,-250.0,0.00010959,2]
[339745332,1727931040031,-150.0,0.00010959,2]
[339745334,1727931040040,-174.95879954,0.00010973,2]
[339745336,1727931040049,-500.0,0.00010973,2]
[339745338,1727931040058,-152.2,0.0001099,2]
[339745340,1727931040068,-152.2,0.0001099,2]
[339745342,1727931040077,-152.2,0.0001099,2]
[339745344,1727931040087,-152.2,0.0001099,2]
[339745346,1727931040097,-40796.78532848,0.00011,2]
[339745348,1727931040109,-385.95255073,0.00011,2]
[339745350,1727931040121,-252.02583929,0.00011,2]
[339745352,1727931040133,-7659.00000018,0.00011,2]
[339745354,1727931040144,-351.22083262,0.00011,2]
[339745357,1727931040159,-555.8586071,0.00011,2]
[339745362,1727931040210,-775.86863024,0.00011,2]
[339745364,1727931040221,-1600.0,0.00011,2]
[339745591,1727931043119,-12710.42615044,0.00011,2]
[339745593,1727931043131,-832.28687525,0.00011,2]
[339745595,1727931043143,-874.54195962,0.00011,2]
[339745610,1727931043281,-549.999999,0.000108,2]
[339745616,1727931043338,-666.21399845,0.000108,2]
[339745618,1727931043350,-463.53723328,0.000108,2]
[339745887,1727931046103,-3795.64476265,0.000108,2]
[339745889,1727931046114,-277.72958304,0.000108,2]
[339745891,1727931046127,-4037.23772358,0.000108,2]
[339745893,1727931046138,-1462.0547,0.000108,2]
[339745896,1727931046149,-6090.07165026,0.0001099,2]
[339745898,1727931046160,-760.95373881,0.00011,2]
[339745907,1727931046246,-6170.91166011,0.00011,2]
[339745909,1727931046258,-520.38152683,0.00011,2]
[339745912,1727931046272,-3392.18267919,0.00011,2]
[339745914,1727931046289,-275937.09937323,0.00011,2]
[339745918,1727931046319,-367.70274939,0.00011,2]
[339745922,1727931046343,-273.72011597,0.00011,2]
[339745924,1727931046355,-675676.96644827,0.00011,2]
[339745929,1727931046395,-281.00881241,0.00011,2]
[339745931,1727931046406,-417.47216,0.00011,2]
[339745933,1727931046417,-1225.48002,0.00011,2]
[339745935,1727931046428,-1698.87654714,0.00011,2]
[339745938,1727931046439,-612.67,0.00011,2]
[339745941,1727931046463,-1102.43613394,0.00011,2]
[339745943,1727931046474,-2859.89930432,0.00011,2]
[339745945,1727931046485,-4960.51153717,0.00011,2]
[339745947,1727931046496,-7818.3596,0.00011,2]
[339745949,1727931046510,-2541.49734498,0.00011,2]
[339746293,1727931091795,14786.6991,0.00010152,2]
[339746294,1727931133192,574.28,9.392e-05,2]
[339746295,1727931634798,692.32,9.112e-05,2]
[339746302,1727932159078,722.48,8.535e-05,2]
[339746316,1727932232721,-150.0,0.00010342,2]
[339746318,1727932232730,-2170.0000004,0.00010343,2]
[339746320,1727932232745,-21729.9999996,0.00010343,2]
[339746322,1727932232754,-1386.31,0.00010343,2]
[339746323,1727932232763,-250.0,0.00010343,2]
[339746324,1727932232773,-943.09,0.00010345,2]
[339746325,1727932232782,-250.0,0.00010355,2]
[339746326,1727932232791,-1000.0,0.00010423,2]
[339746327,1727932232800,-375.31,0.00010441,2]
[339746328,1727932232809,-3889.1067,0.000107,2]
[339746329,1727932232818,-722.48,0.00010799,2]
[339746330,1727932232827,-261.9592,0.000108,2]
[339746331,1727932232836,-3032.2513,0.000108,2]
[339746332,1727932232849,-384.833,0.000108,2]
[339746333,1727932232858,-12744.27442181,0.00010899,2]
[339746334,1727932232867,-5068.1881,0.000109,2]
[339746335,1727932232876,-3130.4732,0.000109,2]
[339746336,1727932232885,-688.74385302,0.000109,2]
[339746337,1727932232894,-184.27180365,0.000109,2]
[339746338,1727932232903,-4894.8293,0.000109,2]
[339746339,1727932232912,-3727.8522,0.000109,2]
[339746340,1727932232922,-79559.24129135,0.000109,2]
[339746341,1727932232934,-541.11001,0.000109,2]
[339746342,1727932232945,-2729.80673935,0.000109,2]
[339746343,1727932232956,-554.04576987,0.000109,2]
[339746344,1727932232982,-925.1775,0.000109,2]
[339746347,1727932238245,-41320.42468943,0.000109,2]
[339746348,1727932238255,-2500.0,0.000109,2]
[339746349,1727932238264,-3806.0061,0.000109,2]
[339746350,1727932238273,-1788.08,0.000109,2]
[339746351,1727932238282,-471.57691574,0.0001095,2]
[339746352,1727932238291,-499.99,0.0001095,2]
[339746353,1727932238301,-165.29,0.00010959,2]
[339746354,1727932238310,-172.12,0.00010959,2]
[339746355,1727932238320,-250.0,0.00010959,2]
[339746356,1727932238329,-428.91,0.0001099,2]
[339746357,1727932238338,-2550.11899817,0.0001099,2]
[339746358,1727932238351,-29205.12320599,0.00011,2]
[339746359,1727932238410,-782.53154917,0.00011,2]
[339746360,1727932238421,-276.73994888,0.00011,2]
[339746361,1727932238433,-263308.07825495,0.00011,2]
[339746362,1727932238443,-200.0,0.00011,2]
[339746363,1727932238453,-250.0,0.00011,2]
[339746364,1727932238462,-200.0,0.0001111,2]
[339746365,1727932238472,-164.42,0.00011113,2]
[339746366,1727932238481,-152.29,0.00011162,2]
[339746367,1727932238490,-688.74385299,0.00011171,2]
[339746368,1727932238500,-471.57691568,0.00011214,2]
[339746369,1727932238509,-200.0,0.00011221,2]
[339746370,1727932238518,-200.0,0.00011333,2]
[339746371,1727932238527,-150.0,0.00011356,2]
[339746372,1727932238536,-688.74385299,0.00011443,2]
[339746373,1727932238546,-471.57691568,0.00011479,2]
[339746374,1727932238555,-150.0,0.00011589,2]
[339746375,1727932238564,-150.0,0.00011589,2]
[339746376,1727932238573,-688.74385299,0.00011714,2]
[339746377,1727932238583,-12744.27442177,0.0001172,2]
[339746378,1727932238592,-1000.0,0.00011726,2]
[339746379,1727932238604,-471.57691568,0.00011743,2]
[339746380,1727932238613,-150.0,0.00011804,2]
[339746381,1727932238622,-500.0,0.000119,2]
[339746382,1727932238632,-457.61,0.000119,2]
[339746383,1727932238641,-500.0,0.000119,2]
[339746384,1727932238650,-589.67,0.000119,2]
[339746385,1727932238660,-688.74385299,0.00011986,2]
[339746386,1727932238669,-471.57691568,0.00012007,2]
[339746387,1727932238680,-150.0,0.00012018,2]
[339746388,1727932238691,-377.08,0.00012078,2]
[339746389,1727932238701,-1494.0,0.000122,2]
[339746390,1727932238712,-1000.0,0.000122,2]
[339746391,1727932238722,-1196.0,0.000122,2]
[339746392,1727932238734,-1000.0,0.000122,2]
[339746393,1727932238746,-150.0,0.00012233,2]
[339746394,1727932238756,-688.74385299,0.00012257,2]
[339746395,1727932238766,-471.57691568,0.00012271,2]
[339746396,1727932238777,-11729.02,0.00012328,2]
[339746397,1727932238787,-428.91,0.00012363,2]
[339746398,1727932238797,-168.23,0.00012445,2]
[339746399,1727932238806,-150.0,0.00012447,2]
[339746400,1727932238815,-688.74385299,0.00012529,2]
[339746401,1727932238825,-471.57691568,0.00012536,2]
[339746402,1727932238834,-12744.27442177,0.0001264,2]
[339746403,1727932238844,-150.0,0.00012662,2]
[339746404,1727932238854,-537.19160025,0.00012706,2]
[339746405,1727932238863,-799.0,0.00012727,2]
[339746406,1727932238873,-500.0,0.00012796,2]
[339746407,1727932238882,-500.0,0.00012797,2]
[339746408,1727932238891,-500.0,0.00012797,2]
[339746409,1727932238901,-471.57691568,0.000128,2]
[339746410,1727932238910,-688.74385299,0.000128,2]
[339746411,1727932238920,-3171.8705036,0.000128,2]
[339746412,1727932238930,-7500.0,0.000128,2]
[339746413,1727932238940,-308.883263,0.000128,2]
[339746414,1727932238949,-1012.24,0.000128,2]
[339746415,1727932238958,-446.67037272,0.000128,2]